fUSD/lending_fUSD_20260516
["ID","MTS","AMOUNT","RATE_DAILY","PERIOD"]
[422358053,1778869276000,-153.7,0.00011809,2]
[422358050,1778869276000,-153.7,0.00010424,2]
[422358052,1778869276000,-153.7,0.00011347,2]
[422358054,1778869276000,-153.7,0.00012271,2]
[422358056,1778869276000,-326.9020831,0.00012899,2]
[422358055,1778869276000,-153.7,0.00012733,2]
[422358057,1778869768000,-361.78757829,0.000124,2]
[422358093,1778869832000,-5530.0,0.00013,3]
[422358089,1778869832000,-170.34085752,0.00013,2]
[422358091,1778869832000,-170.34085752,0.00013,2]
[422358095,1778869832000,-166.14,0.00013038,2]
[422358103,1778869832000,-23158.72444439,0.00013122,2]
[422358102,1778869832000,-208.38824723,0.00013108,2]
[422358110,1778869832000,-224.47,0.00013221,2]
[422358112,1778869832000,-161.35,0.00013318,2]
[422358123,1778869832000,-150.0,0.00013488,2]
[422358122,1778869832000,-150.0,0.00013488,2]
[422358116,1778869832000,-23158.72444439,0.00013344,2]
[422358106,1778869832000,-584.1,0.00013179,2]
[422358108,1778869832000,-153.7,0.00013194,2]
[422358075,1778869832000,-173.24649488,0.00012668,2]
[422358087,1778869832000,-402.33,0.00012998,2]
[422358083,1778869832000,-1082.7688,0.000129,2]
[422358085,1778869832000,-165.79056391,0.00012935,2]
[422358081,1778869832000,-23158.72444441,0.000129,2]
[422358079,1778869832000,-150.0,0.00012899,2]
[422358077,1778869832000,-167.16,0.00012768,2]
[422358064,1778869832000,-392.70594018,0.000122,2]
[422358069,1778869832000,-1945.1958222,0.000122,2]
[422358114,1778869832000,-225.18,0.00013344,2]
[422358067,1778869832000,-1306.980303,0.000122,2]
[422358071,1778869832000,-5825.11793462,0.000122,2]
[422358073,1778869832000,-1200.0,0.00012399,2]
[422358099,1778869832000,-214.997284,0.00013102,2]
[422358119,1778869832000,-150.0,0.00013488,2]
[422358097,1778869832000,-2000.0,0.00013093,2]
[422358118,1778869832000,-150.0,0.00013488,2]
[422358120,1778869832000,-150.0,0.00013488,2]
[422358148,1778869832000,-1703.47773723,0.00013567,2]
[422358147,1778869832000,-280.72,0.00013567,2]
[422358145,1778869832000,-326.848,0.00013567,2]
[422358146,1778869832000,-2003.26428485,0.00013567,2]
[422358142,1778869832000,-367.5852002,0.00013567,2]
[422358139,1778869832000,-1328.65142791,0.00013567,2]
[422358143,1778869832000,-551.21250411,0.00013567,2]
[422358144,1778869832000,-302.27094942,0.00013567,2]
[422358141,1778869832000,-305.87152824,0.00013567,2]
[422358140,1778869832000,-610.44814184,0.00013567,2]
[422358138,1778869832000,-150.0,0.00013565,2]
[422358137,1778869832000,-150.0,0.00013565,2]
[422358149,1778869832000,-1204.85061,0.00013567,2]
[422358136,1778869832000,-332.31405361,0.00013563,2]
[422358133,1778869832000,-150.0,0.00013539,2]
[422358131,1778869832000,-150.0,0.00013526,2]
[422358130,1778869832000,-150.0,0.00013526,2]
[422358132,1778869832000,-332.31405361,0.00013533,2]
[422358134,1778869832000,-332.31405361,0.00013548,2]
[422358128,1778869832000,-332.31405361,0.00013518,2]
[422358129,1778869832000,-150.0,0.0001352,2]
[422358127,1778869832000,-584.1,0.00013509,2]
[422358126,1778869832000,-332.31405361,0.00013503,2]
[422358125,1778869832000,-332.31405361,0.00013488,2]
[422358124,1778869832000,-150.0,0.00013488,2]
[422358135,1778869832000,-150.0,0.00013551,2]
[422358121,1778869832000,-150.0,0.00013488,2]
[422358151,1778869833000,-819.1793169,0.00013567,2]
[422358150,1778869833000,-683.835,0.00013567,2]
[422358181,1778869838000,-150.0,0.0001368,2]
[422358179,1778869838000,-150.0,0.00013679,2]
[422358183,1778869838000,-150.0,0.00013687,2]
[422358184,1778869838000,-150.0,0.00013694,2]
[422358182,1778869838000,-332.31405361,0.00013684,2]
[422358185,1778869838000,-500.0,0.00013698,2]
[422358186,1778869838000,-549.88,0.00013698,2]
[422358187,1778869838000,-500.0,0.00013698,2]
[422358188,1778869838000,-500.0,0.00013698,2]
[422358190,1778869838000,-500.0,0.00013698,2]
[422358189,1778869838000,-500.0,0.00013698,2]
[422358198,1778869838000,-505.50097699,0.00013698,2]
[422358194,1778869838000,-500.0,0.00013698,2]
[422358191,1778869838000,-500.0,0.00013698,2]
[422358193,1778869838000,-500.0,0.00013698,2]
[422358195,1778869838000,-500.0,0.00013698,2]
[422358200,1778869838000,-500.0,0.00013698,2]
[422358196,1778869838000,-500.0,0.00013698,2]
[422358197,1778869838000,-500.0,0.00013698,2]
[422358207,1778869838000,-500.0,0.00013698,2]
[422358201,1778869838000,-549.0418679,0.00013698,2]
[422358180,1778869838000,-150.0,0.0001368,2]
[422358192,1778869838000,-887.26,0.00013698,2]
[422358178,1778869838000,-332.31405361,0.00013669,2]
[422358161,1778869838000,-150.0,0.00013588,2]
[422358175,1778869838000,-150.0,0.00013643,2]
[422358153,1778869838000,-200.0,0.000131,2]
[422358155,1778869838000,-663.04509736,0.00013567,2]
[422358154,1778869838000,-1324.574117,0.00013567,2]
[422358156,1778869838000,-10682.89052933,0.00013567,2]
[422358157,1778869838000,-332.31405361,0.00013578,2]
[422358158,1778869838000,-204.277422,0.00013583,2]
[422358159,1778869838000,-500.0,0.00013583,2]
[422358160,1778869838000,-150.0,0.00013583,2]
[422358162,1778869838000,-150.0,0.00013591,2]
[422358164,1778869838000,-1213.25634835,0.00013599,2]
[422358176,1778869838000,-150.0,0.00013647,2]
[422358163,1778869838000,-332.31405361,0.00013594,2]
[422358165,1778869838000,-150.0,0.00013603,2]
[422358172,1778869838000,-332.31405361,0.00013639,2]
[422358171,1778869838000,-1293.0,0.00013639,2]
[422358170,1778869838000,-332.31405361,0.00013624,2]
[422358167,1778869838000,-150.0,0.00013603,2]
[422358169,1778869838000,-150.0,0.00013615,2]
[422358168,1778869838000,-332.31405361,0.00013609,2]
[422358174,1778869838000,-150.0,0.00013641,2]
[422358173,1778869838000,-150.0,0.00013641,2]
[422358177,1778869838000,-332.31405361,0.00013654,2]
[422358166,1778869838000,-150.0,0.00013603,2]
[422358203,1778869838000,-500.0,0.00013698,2]
[422358212,1778869838000,-500.0,0.00013698,2]
[422358206,1778869838000,-500.0,0.00013698,2]
[422358238,1778869838000,-150.0,0.00013743,2]
[422358237,1778869838000,-332.31405361,0.0001373,2]
[422358241,1778869838000,-150.0,0.00013746,2]
[422358240,1778869838000,-332.31405361,0.00013745,2]
[422358239,1778869838000,-1213.25634826,0.00013744,2]
[422358243,1778869838000,-150.0,0.00013757,2]
[422358242,1778869838000,-150.0,0.00013757,2]
[422358245,1778869838000,-150.0,0.00013775,2]
[422358247,1778869838000,-150.0,0.00013787,2]
[422358246,1778869838000,-332.31405361,0.00013775,2]
[422358236,1778869838000,-150.0,0.00013718,2]
[422358248,1778869838000,-23158.72444439,0.00013789,2]
[422358251,1778869838000,-150.0,0.00013795,2]
[422358250,1778869838000,-150.0,0.00013795,2]
[422358252,1778869838000,-150.0,0.00013798,2]
[422358254,1778869838000,-150.0,0.00013807,2]
[422358255,1778869838000,-332.31405361,0.00013821,2]
[422358253,1778869838000,-332.31405361,0.00013806,2]
[422358256,1778869838000,-150.0,0.00013834,2]
[422358257,1778869838000,-150.0,0.00013834,2]
[422358258,1778869838000,-150.0,0.00013834,2]
[422358205,1778869838000,-162.16117544,0.00013698,2]
[422358244,1778869838000,-332.31405361,0.0001376,2]
[422358235,1778869838000,-150.0,0.00013718,2]
[422358249,1778869838000,-332.31405361,0.0001379,2]
[422358231,1778869838000,-332.31405361,0.000137,2]
[422358209,1778869838000,-500.0,0.00013698,2]
[422358233,1778869838000,-332.31405361,0.00013715,2]
[422358208,1778869838000,-500.0,0.00013698,2]
[422358210,1778869838000,-500.0,0.00013698,2]
[422358216,1778869838000,-500.0,0.00013698,2]
[422358215,1778869838000,-746.33,0.00013698,2]
[422358213,1778869838000,-740.02,0.00013698,2]
[422358217,1778869838000,-500.0,0.00013698,2]
[422358219,1778869838000,-500.0,0.00013698,2]
[422358218,1778869838000,-500.0,0.00013698,2]
[422358220,1778869838000,-500.0,0.00013698,2]
[422358214,1778869838000,-746.33,0.00013698,2]
[422358221,1778869838000,-500.0,0.00013698,2]
[422358232,1778869838000,-150.0,0.00013711,2]
[422358222,1778869838000,-500.0,0.00013698,2]
[422358228,1778869838000,-2500.0,0.00013699,2]
[422358225,1778869838000,-500.0,0.00013698,2]
[422358224,1778869838000,-500.0,0.00013698,2]
[422358229,1778869838000,-200.0,0.00013699,2]
[422358230,1778869838000,-782.09,0.00013699,2]
[422358226,1778869838000,-500.0,0.00013698,2]
[422358227,1778869838000,-166.66,0.00013699,2]
[422358223,1778869838000,-500.0,0.00013698,2]
[422358234,1778869838000,-150.0,0.00013718,2]
[422358300,1778869839000,-150.0,0.00013987,2]
[422358301,1778869839000,-332.31405361,0.00013987,2]
[422358303,1778869839000,-150.0,0.00013998,2]
[422358306,1778869839000,-150.0,0.00014004,2]
[422358302,1778869839000,-2730.1767011,0.0001399,2]
[422358304,1778869839000,-250.0,0.00014,2]
[422358295,1778869839000,-332.31405361,0.00013957,2]
[422358299,1778869839000,-150.0,0.00013987,2]
[422358297,1778869839000,-332.31405361,0.00013972,2]
[422358294,1778869839000,-150.0,0.00013953,2]
[422358305,1778869839000,-332.31405361,0.00014002,2]
[422358296,1778869839000,-150.0,0.00013966,2]
[422358298,1778869839000,-150.0,0.00013987,2]
[422358308,1778869839000,-11100.45,0.00014009,2]
[422358321,1778869839000,-300.0,0.00014045,2]
[422358309,1778869839000,-23158.72444439,0.00014011,2]
[422358307,1778869839000,-210.0,0.00014008,2]
[422358311,1778869839000,-508.43277661,0.00014018,2]
[422358312,1778869839000,-150.0,0.00014026,2]
[422358314,1778869839000,-150.0,0.0001403,2]
[422358313,1778869839000,-150.0,0.00014026,2]
[422358315,1778869839000,-332.31405361,0.00014033,2]
[422358316,1778869839000,-1213.25634826,0.00014033,2]
[422358318,1778869839000,-206.01414035,0.00014045,2]
[422358319,1778869839000,-162.51448649,0.00014045,2]
[422358320,1778869839000,-300.0,0.00014045,2]
[422358324,1778869839000,-300.0,0.00014045,2]
[422358322,1778869839000,-300.0,0.00014045,2]
[422358293,1778869839000,-150.0,0.00013949,2]
[422358310,1778869839000,-332.31405361,0.00014017,2]
[422358290,1778869839000,-500.0,0.00013945,2]
[422358268,1778869839000,-2500.0,0.0001386,2]
[422358291,1778869839000,-150.0,0.00013949,2]
[422358259,1778869839000,-332.31405361,0.00013836,2]
[422358260,1778869839000,-584.1,0.00013838,2]
[422358262,1778869839000,-150.0,0.00013849,2]
[422358261,1778869839000,-150.0,0.00013838,2]
[422358263,1778869839000,-332.31405361,0.00013851,2]
[422358264,1778869839000,-500.0,0.00013857,2]
[422358265,1778869839000,-2500.0,0.0001386,2]
[422358266,1778869839000,-2500.0,0.0001386,2]
[422358323,1778869839000,-300.0,0.00014045,2]
[422358267,1778869839000,-2500.0,0.0001386,2]
[422358269,1778869839000,-2500.0,0.0001386,2]
[422358270,1778869839000,-610.37457712,0.0001386,2]
[422358272,1778869839000,-332.31405361,0.00013866,2]
[422358273,1778869839000,-150.0,0.0001387,2]
[422358274,1778869839000,-150.0,0.00013872,2]
[422358275,1778869839000,-150.0,0.00013872,2]
[422358271,1778869839000,-150.0,0.00013862,2]
[422358286,1778869839000,-332.31405361,0.00013912,2]
[422358287,1778869839000,-332.31405361,0.00013927,2]
[422358288,1778869839000,-150.0,0.00013934,2]
[422358289,1778869839000,-332.31405361,0.00013942,2]
[422358285,1778869839000,-150.0,0.0001391,2]
[422358284,1778869839000,-150.0,0.0001391,2]
[422358292,1778869839000,-150.0,0.00013949,2]
[422358282,1778869839000,-150.0,0.00013901,2]
[422358283,1778869839000,-150.0,0.00013902,2]
[422358279,1778869839000,-166.66,0.00013891,2]
[422358280,1778869839000,-332.31405361,0.00013896,2]
[422358277,1778869839000,-150.0,0.00013887,2]
[422358278,1778869839000,-1213.25634826,0.00013888,2]
[422358276,1778869839000,-332.31405361,0.00013881,2]
[422358281,1778869839000,-5530.0,0.000139,5]
[422358325,1778869839000,-332.31405361,0.00014048,2]
[422358317,1778869839000,-600.0,0.00014045,2]
[422358327,1778869839000,-150.0,0.00014062,2]
[422358367,1778869839000,-247.4,0.00014216,2]
[422358368,1778869839000,-150.0,0.00014218,2]
[422358371,1778869839000,-332.31405361,0.00014229,2]
[422358370,1778869839000,-150.0,0.00014221,2]
[422358372,1778869839000,-23158.72444439,0.00014233,2]
[422358374,1778869839000,-332.31405361,0.00014245,2]
[422358375,1778869839000,-150.0,0.00014253,2]
[422358373,1778869839000,-150.0,0.00014237,2]
[422358376,1778869839000,-150.0,0.00014256,2]
[422358377,1778869839000,-150.0,0.00014256,2]
[422358378,1778869839000,-332.31405361,0.0001426,2]
[422358380,1778869839000,-332.31405361,0.00014275,2]
[422358379,1778869839000,-150.0,0.00014263,2]
[422358384,1778869839000,-150.0,0.00014287,2]
[422358365,1778869839000,-332.31405361,0.00014214,2]
[422358381,1778869839000,-166.66,0.00014277,2]
[422358385,1778869839000,-332.31405361,0.0001429,2]
[422358387,1778869839000,-150.0,0.00014295,2]
[422358389,1778869839000,-332.31405361,0.00014305,2]
[422358388,1778869839000,-150.0,0.00014295,2]
[422358391,1778869839000,-150.0,0.00014315,2]
[422358390,1778869839000,-350.0,0.00014309,2]
[422358392,1778869839000,-150.0,0.00014317,2]
[422358393,1778869839000,-350.0,0.0001432,2]
[422358396,1778869839000,-1241.19152382,0.00014329,2]
[422358397,1778869839000,-150.0,0.00014333,2]
[422358398,1778869839000,-150.0,0.00014333,2]
[422358394,1778869839000,-332.31405361,0.0001432,2]
[422358395,1778869839000,-1213.25634826,0.00014322,2]
[422358326,1778869839000,-150.0,0.00014056,2]
[422358386,1778869839000,-150.0,0.00014295,2]
[422358369,1778869839000,-150.0,0.00014218,2]
[422358382,1778869839000,-150.0,0.00014285,2]
[422358361,1778869839000,-332.31405361,0.00014199,2]
[422358341,1778869839000,-332.31405361,0.00014123,2]
[422358342,1778869839000,-150.0,0.00014125,2]
[422358340,1778869839000,-332.31405361,0.00014108,2]
[422358338,1778869839000,-150.0,0.00014102,2]
[422358336,1778869839000,-150.0,0.00014094,2]
[422358337,1778869839000,-150.0,0.00014102,2]
[422358339,1778869839000,-150.0,0.00014108,2]
[422358335,1778869839000,-332.31405361,0.00014093,2]
[422358334,1778869839000,-150.0,0.00014087,2]
[422358332,1778869839000,-332.31405361,0.00014078,2]
[422358330,1778869839000,-150.0,0.00014064,2]
[422358331,1778869839000,-150.0,0.00014064,2]
[422358329,1778869839000,-150.0,0.00014064,2]
[422358363,1778869839000,-150.0,0.00014211,2]
[422358333,1778869839000,-166.66,0.00014084,2]
[422358344,1778869839000,-332.31405361,0.00014139,2]
[422358328,1778869839000,-332.31405361,0.00014063,2]
[422358359,1778869839000,-150.0,0.00014189,2]
[422358343,1778869839000,-500.0,0.00014131,2]
[422358357,1778869839000,-150.0,0.00014187,2]
[422358355,1778869839000,-150.0,0.00014179,2]
[422358353,1778869839000,-150.0,0.00014179,2]
[422358352,1778869839000,-1213.25634826,0.00014177,2]
[422358351,1778869839000,-332.31405361,0.00014169,2]
[422358356,1778869839000,-332.31405361,0.00014184,2]
[422358350,1778869839000,-584.1,0.00014168,2]
[422358349,1778869839000,-150.0,0.00014159,2]
[422358347,1778869839000,-332.31405361,0.00014154,2]
[422358346,1778869839000,-150.0,0.00014141,2]
[422358348,1778869839000,-150.0,0.00014157,2]
[422358345,1778869839000,-150.0,0.00014141,2]
[422358354,1778869839000,-150.0,0.00014179,2]
[422358442,1778869840000,-150.0,0.00014525,2]
[422358445,1778869840000,-150.0,0.0001454,2]
[422358444,1778869840000,-332.31405361,0.00014532,2]
[422358443,1778869840000,-150.0,0.00014525,2]
[422358441,1778869840000,-150.0,0.00014525,2]
[422358440,1778869840000,-150.0,0.00014521,2]
[422358433,1778869840000,-150.0,0.00014487,2]
[422358437,1778869840000,-150.0,0.00014508,2]
[422358436,1778869840000,-332.31405361,0.00014502,2]
[422358438,1778869840000,-5000.0,0.0001451,2]
[422358435,1778869840000,-584.1,0.00014497,2]
[422358431,1778869840000,-150.0,0.00014487,2]
[422358450,1778869840000,-150.0,0.00014564,2]
[422358439,1778869840000,-332.31405361,0.00014517,2]
[422358461,1778869840000,-150.0,0.00014612,2]
[422358455,1778869840000,-332.31405361,0.00014593,2]
[422358446,1778869840000,-332.31405361,0.00014547,2]
[422358451,1778869840000,-150.0,0.00014572,2]
[422358449,1778869840000,-150.0,0.00014564,2]
[422358452,1778869840000,-150.0,0.00014573,2]
[422358456,1778869840000,-150.0,0.00014602,2]
[422358454,1778869840000,-150.0,0.00014587,2]
[422358453,1778869840000,-332.31405361,0.00014578,2]
[422358462,1778869840000,-1241.19152382,0.00014614,2]
[422358458,1778869840000,-150.0,0.00014604,2]
[422358463,1778869840000,-332.31405361,0.00014623,2]
[422358465,1778869840000,-150.0,0.00014636,2]
[422358459,1778869840000,-332.31405361,0.00014608,2]
[422358464,1778869840000,-150.0,0.00014625,2]
[422358457,1778869840000,-150.0,0.00014602,2]
[422358448,1778869840000,-332.31405361,0.00014562,2]
[422358432,1778869840000,-150.0,0.00014487,2]
[422358399,1778869840000,-332.31405361,0.00014335,2]
[422358430,1778869840000,-150.0,0.00014476,2]
[422358403,1778869840000,-150.0,0.00014366,2]
[422358402,1778869840000,-332.31405361,0.00014366,2]
[422358401,1778869840000,-332.31405361,0.00014351,2]
[422358400,1778869840000,-150.0,0.00014349,2]
[422358405,1778869840000,-150.0,0.00014371,2]
[422358404,1778869840000,-500.0,0.0001437,2]
[422358406,1778869840000,-150.0,0.00014371,2]
[422358407,1778869840000,-150.0,0.0001438,2]
[422358411,1778869840000,-500.0,0.00014405,2]
[422358408,1778869840000,-332.31405361,0.00014381,2]
[422358409,1778869840000,-150.0,0.00014387,2]
[422358410,1778869840000,-332.31405361,0.00014396,2]
[422358414,1778869840000,-150.0,0.0001441,2]
[422358412,1778869840000,-150.0,0.0001441,2]
[422358434,1778869840000,-332.31405361,0.00014487,2]
[422358415,1778869840000,-332.31405361,0.00014411,2]
[422358416,1778869840000,-150.0,0.00014412,2]
[422358417,1778869840000,-150.0,0.00014418,2]
[422358418,1778869840000,-332.31405361,0.00014426,2]
[422358420,1778869840000,-150.0,0.00014444,2]
[422358423,1778869840000,-23158.72444439,0.00014456,2]
[422358419,1778869840000,-332.31405361,0.00014441,2]
[422358422,1778869840000,-150.0,0.00014448,2]
[422358424,1778869840000,-332.31405361,0.00014456,2]
[422358421,1778869840000,-150.0,0.00014448,2]
[422358425,1778869840000,-166.19,0.00014458,2]
[422358427,1778869840000,-150.0,0.0001447,2]
[422358429,1778869840000,-332.31405361,0.00014472,2]
[422358426,1778869840000,-1213.25634826,0.00014466,2]
[422358428,1778869840000,-166.66,0.0001447,2]
[422358413,1778869840000,-150.0,0.0001441,2]
[422358460,1778869840000,-1213.25634826,0.00014611,2]
[422358447,1778869840000,-350.0,0.0001456,2]
[422358468,1778869840000,-150.0,0.0001464,2]
[422358504,1778869840000,-150.0,0.00014794,2]
[422358505,1778869840000,-150.0,0.00014794,2]
[422358503,1778869840000,-5000.0,0.00014791,2]
[422358506,1778869840000,-150.0,0.00014795,2]
[422358510,1778869840000,-332.31405361,0.0001482,2]
[422358507,1778869840000,-332.31405361,0.00014805,2]
[422358511,1778869840000,-150.0,0.00014827,2]
[422358508,1778869840000,-570.586,0.00014805,2]
[422358509,1778869840000,-172.838,0.00014805,2]
[422358514,1778869840000,-150.0,0.00014833,2]
[422358512,1778869840000,-150.0,0.00014831,2]
[422358516,1778869840000,-332.31405361,0.00014835,2]
[422358515,1778869840000,-350.0,0.00014833,2]
[422358520,1778869840000,-500.0,0.00014849,2]
[422358517,1778869840000,-200.0,0.00014841,2]
[422358513,1778869840000,-150.0,0.00014833,2]
[422358519,1778869840000,-500.0,0.00014849,2]
[422358466,1778869840000,-332.31405361,0.00014638,2]
[422358533,1778869840000,-150.0,0.00014871,2]
[422358534,1778869840000,-191.26378013,0.00014873,2]
[422358530,1778869840000,-150.0,0.00014871,2]
[422358527,1778869840000,-332.31405361,0.00014865,2]
[422358529,1778869840000,-230.77568616,0.00014868,2]
[422358502,1778869840000,-332.31405361,0.0001479,2]
[422358528,1778869840000,-191.26378019,0.00014868,2]
[422358524,1778869840000,-29964.16918207,0.0001485,2]
[422358523,1778869840000,-508.37684919,0.00014849,2]
[422358521,1778869840000,-500.0,0.00014849,2]
[422358525,1778869840000,-332.31405361,0.0001485,2]
[422358522,1778869840000,-746.33,0.00014849,2]
[422358518,1778869840000,-500.0,0.00014849,2]
[422358526,1778869840000,-150.0,0.00014859,2]
[422358499,1778869840000,-332.31405361,0.00014774,2]
[422358532,1778869840000,-150.0,0.00014871,2]
[422358498,1778869840000,-150.0,0.00014763,2]
[422358500,1778869840000,-150.0,0.0001478,2]
[422358470,1778869840000,-332.31405361,0.00014653,2]
[422358469,1778869840000,-150.0,0.0001464,2]
[422358472,1778869840000,-150.0,0.00014667,2]
[422358471,1778869840000,-166.66,0.00014662,2]
[422358473,1778869840000,-332.31405361,0.00014668,2]
[422358475,1778869840000,-23158.72444439,0.00014678,2]
[422358476,1778869840000,-150.0,0.00014679,2]
[422358474,1778869840000,-150.0,0.00014676,2]
[422358477,1778869840000,-150.0,0.00014679,2]
[422358479,1778869840000,-332.31405361,0.00014684,2]
[422358478,1778869840000,-500.0,0.00014679,2]
[422358480,1778869840000,-150.0,0.00014687,2]
[422358481,1778869840000,-332.31405361,0.00014699,2]
[422358482,1778869840000,-150.0,0.00014699,2]
[422358467,1778869840000,-150.0,0.0001464,2]
[422358483,1778869840000,-332.31405361,0.00014714,2]
[422358484,1778869840000,-150.0,0.00014717,2]
[422358497,1778869840000,-332.31405361,0.00014759,2]
[422358495,1778869840000,-150.0,0.00014756,2]
[422358494,1778869840000,-150.0,0.00014756,2]
[422358493,1778869840000,-150.0,0.00014756,2]
[422358486,1778869840000,-150.0,0.00014728,2]
[422358496,1778869840000,-200.0,0.00014758,2]
[422358488,1778869840000,-2000.0,0.0001473,2]
[422358485,1778869840000,-150.0,0.00014717,2]
[422358490,1778869840000,-332.31405361,0.00014744,2]
[422358487,1778869840000,-332.31405361,0.00014729,2]
[422358501,1778869840000,-150.0,0.00014786,2]
[422358489,1778869840000,-150.0,0.00014731,2]
[422358491,1778869840000,-332.0,0.00014755,2]
[422358492,1778869840000,-1213.25634826,0.00014755,2]
[422358572,1778869841000,-25000.0,0.000149,3]
[422358590,1778869841000,-150.0,0.00014909,2]
[422358576,1778869841000,-153.53198692,0.000149,2]
[422358578,1778869841000,-191.26378013,0.000149,2]
[422358584,1778869841000,-735.48096882,0.000149,2]
[422358582,1778869841000,-23158.72444439,0.000149,2]
[422358587,1778869841000,-974.25148058,0.000149,2]
[422358585,1778869841000,-230.77568615,0.000149,2]
[422358580,1778869841000,-1241.19152382,0.000149,2]
[422358589,1778869841000,-1741.2090378,0.00014905,2]
[422358588,1778869841000,-4372.65517103,0.000149,2]
[422358574,1778869841000,-17061.47664226,0.000149,3]
[422358586,1778869841000,-9233.85867884,0.000149,2]
[422358600,1778869841000,-150.0,0.00014948,2]
[422358591,1778869841000,-150.0,0.00014909,2]
[422358594,1778869841000,-150.0,0.00014923,2]
[422358593,1778869841000,-604.85278,0.0001492,2]
[422358595,1778869841000,-188.23647324,0.00014925,2]
[422358597,1778869841000,-150.0,0.00014935,2]
[422358596,1778869841000,-332.31405361,0.00014926,2]
[422358599,1778869841000,-150.0,0.00014948,2]
[422358598,1778869841000,-332.31405361,0.00014941,2]
[422358602,1778869841000,-150.0,0.00014954,2]
[422358601,1778869841000,-500.0,0.00014953,2]
[422358604,1778869841000,-350.0,0.00014956,2]
[422358568,1778869841000,-500.0,0.00014899,2]
[422358603,1778869841000,-332.31405361,0.00014956,2]
[422358592,1778869841000,-332.31405361,0.00014911,2]
[422358570,1778869841000,-2499.991,0.000149,2]
[422358547,1778869841000,-350.0,0.00014893,2]
[422358562,1778869841000,-740.02,0.00014899,2]
[422358605,1778869841000,-320.0,0.00014959,2]
[422358535,1778869841000,-191.26378013,0.00014879,2]
[422358536,1778869841000,-200.0,0.00014879,2]
[422358538,1778869841000,-332.31405361,0.0001488,2]
[422358541,1778869841000,-191.26378013,0.00014884,2]
[422358537,1778869841000,-604.85279,0.0001488,2]
[422358539,1778869841000,-150.0,0.00014883,2]
[422358543,1778869841000,-150.0,0.00014886,2]
[422358542,1778869841000,-230.77568615,0.00014884,2]
[422358544,1778869841000,-191.26378013,0.00014889,2]
[422358545,1778869841000,-150.0,0.00014891,2]
[422358548,1778869841000,-191.26378013,0.00014895,2]
[422358546,1778869841000,-25000.0,0.00014891,3]
[422358566,1778869841000,-500.0,0.00014899,2]
[422358549,1778869841000,-332.31405361,0.00014895,2]
[422358552,1778869841000,-500.0,0.00014899,2]
[422358551,1778869841000,-549.88,0.00014899,2]
[422358555,1778869841000,-500.0,0.00014899,2]
[422358554,1778869841000,-500.0,0.00014899,2]
[422358553,1778869841000,-500.0,0.00014899,2]
[422358558,1778869841000,-500.0,0.00014899,2]
[422358556,1778869841000,-500.0,0.00014899,2]
[422358557,1778869841000,-500.0,0.00014899,2]
[422358560,1778869841000,-608.0,0.00014899,2]
[422358559,1778869841000,-500.0,0.00014899,2]
[422358561,1778869841000,-500.0,0.00014899,2]
[422358564,1778869841000,-500.0,0.00014899,2]
[422358563,1778869841000,-500.0,0.00014899,2]
[422358550,1778869841000,-500.0,0.00014899,2]
[422358606,1778869841000,-500.0,0.00014967,2]
[422358611,1778869841000,-500.0,0.00014967,2]